[Event "Titled Tuesday Blitz May 4 2021"]
[White "Ezat, Mohamed"]
[Black "Alavi, Sayed Javad"]
[WhiteFideId "10600906"]
[BlackFideId "12500607"]
[WhiteElo "2417"]
[BlackElo "2495"]
[Result "0-1"]
[Round "02"]
[TimeControl "180+1"]
[Date "2021.05.04"]
[WhiteClock "0:00:05"]
[BlackClock "0:00:13"]

1. d4 {[%clk 0:03:00]}  Nf6 {[%clk 0:02:59]} 2. c4 {[%clk 0:03:01]}  e6 {[%clk 0:02:59]} 3. Nc3 {[%clk 0:03:01]}  d5 {[%clk 0:03:00]} 4. cxd5 {[%clk 0:03:01]}  exd5 {[%clk 0:03:01]} 5. Bg5 {[%clk 0:03:00]}  c6 {[%clk 0:03:01]} 6. Qc2 {[%clk 0:03:01]}  Be7 {[%clk 0:02:56]} 7. e3 {[%clk 0:03:01]}  h6 {[%clk 0:02:55]} 8. Bxf6 {[%clk 0:02:55]}  Bxf6 {[%clk 0:02:53]} 9. Bd3 {[%clk 0:02:56]}  O-O {[%clk 0:02:33]} 10. Nge2 {[%clk 0:02:56]}  Re8 {[%clk 0:02:34]} 11. O-O {[%clk 0:02:56]}  Nd7 {[%clk 0:02:26]} 12. b4 {[%clk 0:02:55]}  a6 {[%clk 0:02:20]} 13. Na4 {[%clk 0:02:54]}  Be7 {[%clk 0:02:13]} 14. Nc5 {[%clk 0:02:54]}  Bd6 {[%clk 0:02:09]} 15. a4 {[%clk 0:02:52]}  Qh4 {[%clk 0:01:59]} 16. Ng3 {[%clk 0:02:48]}  Nf6 {[%clk 0:01:55]} 17. Be2 {[%clk 0:02:28]}  Ng4 {[%clk 0:01:38]} 18. Bxg4 {[%clk 0:02:27]}  Qxg4 {[%clk 0:01:39]} 19. b5 {[%clk 0:02:19]}  axb5 {[%clk 0:01:34]} 20. axb5 {[%clk 0:02:19]}  Rxa1 {[%clk 0:01:35]} 21. Rxa1 {[%clk 0:02:18]}  h5 {[%clk 0:01:28]} 22. bxc6 {[%clk 0:02:16]}  bxc6 {[%clk 0:01:29]} 23. h3 {[%clk 0:01:58]}  Qg5 {[%clk 0:01:25]} 24. Qe2 {[%clk 0:01:13]}  Bxg3 {[%clk 0:01:03]} 25. fxg3 {[%clk 0:01:12]}  Qxg3 {[%clk 0:01:03]} 26. Qf2 {[%clk 0:01:12]}  Qxe3 {[%clk 0:00:56]} 27. Qxe3 {[%clk 0:01:12]}  Rxe3 {[%clk 0:00:56]} 28. Ra7 {[%clk 0:01:07]}  Bf5 {[%clk 0:00:47]} 29. Kf2 {[%clk 0:01:02]}  Rc3 {[%clk 0:00:44]} 30. Rc7 {[%clk 0:00:59]}  Rc2+ {[%clk 0:00:44]} 31. Kf3 {[%clk 0:00:57]}  h4 {[%clk 0:00:39]} 32. Rxc6 {[%clk 0:00:54]}  Be4+ {[%clk 0:00:39]} 33. Kf4 {[%clk 0:00:52]}  Bxg2 {[%clk 0:00:37]} 34. Kg4 {[%clk 0:00:47]}  Rc3 {[%clk 0:00:35]} 35. Kxh4 {[%clk 0:00:46]}  Rxh3+ {[%clk 0:00:35]} 36. Kg5 {[%clk 0:00:47]}  Rc3 {[%clk 0:00:33]} 37. Kf5 {[%clk 0:00:45]}  Rc4 {[%clk 0:00:31]} 38. Ke5 {[%clk 0:00:45]}  f6+ {[%clk 0:00:31]} 39. Kf5 {[%clk 0:00:44]}  Rxd4 {[%clk 0:00:29]} 40. Kg6 {[%clk 0:00:37]}  Rg4+ {[%clk 0:00:29]} 41. Kf5 {[%clk 0:00:36]}  Rg5+ {[%clk 0:00:28]} 42. Ke6 {[%clk 0:00:37]}  d4 {[%clk 0:00:26]} 43. Rc8+ {[%clk 0:00:36]}  Kh7 {[%clk 0:00:26]} 44. Rc7 {[%clk 0:00:31]}  Re5+ {[%clk 0:00:24]} 45. Kf7 {[%clk 0:00:30]}  Bd5+ {[%clk 0:00:23]} 46. Kf8 {[%clk 0:00:30]}  Rg5 {[%clk 0:00:23]} 47. Nd7 {[%clk 0:00:26]}  Kh6 {[%clk 0:00:20]} 48. Nb6 {[%clk 0:00:13]}  Be4 {[%clk 0:00:19]} 49. Rd7 {[%clk 0:00:13]}  d3 {[%clk 0:00:18]} 50. Nc4 {[%clk 0:00:13]}  Rd5 {[%clk 0:00:18]} 51. Re7 {[%clk 0:00:10]}  d2 {[%clk 0:00:17]} 52. Nxd2 {[%clk 0:00:10]}  Rxd2 {[%clk 0:00:18]} 53. Rxe4 {[%clk 0:00:10]}  f5 {[%clk 0:00:15]} 54. Re6+ {[%clk 0:00:07]}  Kg5 {[%clk 0:00:13]} 55. Kxg7 {[%clk 0:00:06]}  Rd7+ {[%clk 0:00:14]} 56. Kf8 {[%clk 0:00:04]}  f4 {[%clk 0:00:14]} 57. Re5+ {[%clk 0:00:04]}  Kg4 {[%clk 0:00:14]} 58. Ke8 {[%clk 0:00:04]}  Ra7 {[%clk 0:00:13]} 59. Re4 {[%clk 0:00:03]}  Kg3 {[%clk 0:00:13]} 60. Re6 {[%clk 0:00:02]}  f3 {[%clk 0:00:13]} 61. Rg6+ {[%clk 0:00:03]}  Kf2 {[%clk 0:00:13]} 62. Rf6 {[%clk 0:00:03]}  Ke2 {[%clk 0:00:14]} 63. Re6+ {[%clk 0:00:04]}  Kf1 {[%clk 0:00:14]} 64. Re7 {[%clk 0:00:04]}  Rxe7+ {[%clk 0:00:12]} 65. Kxe7 {[%clk 0:00:05]}  f2 {[%clk 0:00:13]} 0-1


[Site "https://www.chess.com"]

[Event "Titled Tuesday Blitz May 4 2021"]
[White "Ferro, Mario"]
[Black "Peralta, Eduardo"]
[WhiteFideId "810290"]
[BlackFideId "3700062"]
[WhiteElo "2246"]
[BlackElo "2205"]
[Result "0-1"]
[Round "02"]
[TimeControl "180+1"]
[Date "2021.05.04"]
[WhiteClock "0:02:23"]
[BlackClock "0:02:37"]

1. d4 {[%clk 0:03:00]}  Nf6 {[%clk 0:02:59]} 2. Nf3 {[%clk 0:03:00]}  g6 {[%clk 0:02:59]} 3. g3 {[%clk 0:03:00]}  Bg7 {[%clk 0:03:00]} 4. Bg2 {[%clk 0:03:01]}  O-O {[%clk 0:03:01]} 5. O-O {[%clk 0:03:01]}  c5 {[%clk 0:03:01]} 6. c4 {[%clk 0:02:58]}  cxd4 {[%clk 0:03:00]} 7. Nxd4 {[%clk 0:02:59]}  Nc6 {[%clk 0:03:00]} 8. Nc3 {[%clk 0:02:59]}  Ng4 {[%clk 0:03:00]} 9. Nxc6 {[%clk 0:02:56]}  bxc6 {[%clk 0:02:59]} 10. e4 {[%clk 0:02:53]}  Ne5 {[%clk 0:02:57]} 11. Qa4 {[%clk 0:02:49]}  a5 {[%clk 0:02:47]} 12. f4 {[%clk 0:02:22]}  Nd3 {[%clk 0:02:46]} 13. Rd1 {[%clk 0:02:23]}  Qb6+ {[%clk 0:02:37]} 0-1


[Site "https://www.chess.com"]

[Event "Titled Tuesday Blitz May 4 2021"]
[White "Flores Quillas, Diego Saul Rodri"]
[Black "Tari, Aryan"]
[WhiteFideId "3822508"]
[BlackFideId "1510045"]
[WhiteElo "2071"]
[BlackElo "2656"]
[Result "0-1"]
[Round "02"]
[TimeControl "180+1"]
[Date "2021.05.04"]
[WhiteClock "0:00:01"]
[BlackClock "0:01:08"]

1. e4 {[%clk 0:03:00]}  c6 {[%clk 0:02:57]} 2. d4 {[%clk 0:02:57]}  d5 {[%clk 0:02:57]} 3. Nc3 {[%clk 0:02:56]}  dxe4 {[%clk 0:02:57]} 4. Nxe4 {[%clk 0:02:56]}  Nf6 {[%clk 0:02:58]} 5. Nxf6+ {[%clk 0:02:55]}  exf6 {[%clk 0:02:59]} 6. c3 {[%clk 0:02:55]}  Bd6 {[%clk 0:02:59]} 7. Bd3 {[%clk 0:02:53]}  O-O {[%clk 0:02:59]} 8. Qc2 {[%clk 0:02:47]}  Re8+ {[%clk 0:02:59]} 9. Ne2 {[%clk 0:02:46]}  h5 {[%clk 0:02:59]} 10. O-O {[%clk 0:02:44]}  h4 {[%clk 0:02:59]} 11. h3 {[%clk 0:02:44]}  Nd7 {[%clk 0:02:58]} 12. Be3 {[%clk 0:02:42]}  Nf8 {[%clk 0:02:57]} 13. c4 {[%clk 0:02:41]}  Bd7 {[%clk 0:02:54]} 14. Rad1 {[%clk 0:02:36]}  Rc8 {[%clk 0:02:54]} 15. a3 {[%clk 0:02:33]}  Bb8 {[%clk 0:02:53]} 16. Qd2 {[%clk 0:01:58]}  Qc7 {[%clk 0:02:32]} 17. f4 {[%clk 0:01:58]}  f5 {[%clk 0:02:23]} 18. Nc3 {[%clk 0:01:55]}  Nh7 {[%clk 0:02:17]} 19. Bf2 {[%clk 0:01:22]}  g5 {[%clk 0:01:47]} 20. Ne2 {[%clk 0:00:38]}  Nf6 {[%clk 0:01:42]} 21. Rfe1 {[%clk 0:00:32]}  Nh5 {[%clk 0:01:28]} 22. fxg5 {[%clk 0:00:18]}  Qh2+ {[%clk 0:01:27]} 23. Kf1 {[%clk 0:00:18]}  Qh1+ {[%clk 0:01:15]} 24. Ng1 {[%clk 0:00:17]}  Bh2 {[%clk 0:01:12]} 25. Re3 {[%clk 0:00:05]}  f4 {[%clk 0:01:12]} 26. Rf3 {[%clk 0:00:01]}  Ng3+ {[%clk 0:01:08]} 27. Rxg3 {[%clk 0:00:01]}  hxg3 {[%clk 0:01:08]} 0-1


[Site "https://www.chess.com"]

[Event "Titled Tuesday Blitz May 4 2021"]
[White "Foerster-Yialamas, Lucas"]
[Black "Schmakel, Sam"]
[WhiteFideId "30901774"]
[BlackFideId "2039311"]
[WhiteElo "1744"]
[BlackElo "2356"]
[Result "0-1"]
[Round "02"]
[TimeControl "180+1"]
[Date "2021.05.04"]
[WhiteClock "0:00:07"]
[BlackClock "0:00:07"]

1. e4 {[%clk 0:03:00]}  e5 {[%clk 0:02:59]} 2. Nf3 {[%clk 0:03:00]}  Nc6 {[%clk 0:03:00]} 3. Bb5 {[%clk 0:02:59]}  Nf6 {[%clk 0:03:00]} 4. O-O {[%clk 0:02:53]}  Nxe4 {[%clk 0:03:00]} 5. d4 {[%clk 0:02:52]}  Nd6 {[%clk 0:03:00]} 6. Bxc6 {[%clk 0:02:51]}  dxc6 {[%clk 0:03:01]} 7. dxe5 {[%clk 0:02:52]}  Nf5 {[%clk 0:03:01]} 8. Qxd8+ {[%clk 0:02:53]}  Kxd8 {[%clk 0:03:02]} 9. Bg5+ {[%clk 0:02:52]}  Ke8 {[%clk 0:03:02]} 10. Rd1 {[%clk 0:02:50]}  Be7 {[%clk 0:03:01]} 11. Bf4 {[%clk 0:02:48]}  Nh4 {[%clk 0:02:42]} 12. Nxh4 {[%clk 0:02:38]}  Bxh4 {[%clk 0:02:43]} 13. Nc3 {[%clk 0:02:38]}  Bf5 {[%clk 0:02:37]} 14. Ne2 {[%clk 0:02:25]}  Bxc2 {[%clk 0:02:16]} 15. Rd2 {[%clk 0:02:24]}  Bf5 {[%clk 0:01:49]} 16. Rad1 {[%clk 0:02:11]}  Rd8 {[%clk 0:01:46]} 17. Rxd8+ {[%clk 0:02:07]}  Bxd8 {[%clk 0:01:46]} 18. Nd4 {[%clk 0:02:07]}  Bd7 {[%clk 0:01:38]} 19. b4 {[%clk 0:01:40]}  Be7 {[%clk 0:01:29]} 20. a3 {[%clk 0:01:36]}  c5 {[%clk 0:01:20]} 21. bxc5 {[%clk 0:01:17]}  Bxc5 {[%clk 0:01:21]} 22. Nb3 {[%clk 0:01:12]}  Bb6 {[%clk 0:00:45]} 23. g3 {[%clk 0:01:05]}  Ba4 {[%clk 0:00:44]} 24. Rd3 {[%clk 0:01:04]}  Bxb3 {[%clk 0:00:42]} 25. Rxb3 {[%clk 0:01:04]}  Kd7 {[%clk 0:00:42]} 26. a4 {[%clk 0:00:58]}  Re8 {[%clk 0:00:36]} 27. a5 {[%clk 0:00:53]}  Bxa5 {[%clk 0:00:36]} 28. Be3 {[%clk 0:00:46]}  Bb6 {[%clk 0:00:33]} 29. Bxb6 {[%clk 0:00:45]}  cxb6 {[%clk 0:00:25]} 30. f4 {[%clk 0:00:45]}  Re6 {[%clk 0:00:26]} 31. Kf2 {[%clk 0:00:43]}  f6 {[%clk 0:00:22]} 32. exf6 {[%clk 0:00:37]}  Rxf6 {[%clk 0:00:22]} 33. Ke3 {[%clk 0:00:36]}  a6 {[%clk 0:00:21]} 34. g4 {[%clk 0:00:25]}  b5 {[%clk 0:00:21]} 35. f5 {[%clk 0:00:24]}  Kc6 {[%clk 0:00:17]} 36. h4 {[%clk 0:00:19]}  h5 {[%clk 0:00:12]} 37. Kf4 {[%clk 0:00:18]}  hxg4 {[%clk 0:00:12]} 38. Kxg4 {[%clk 0:00:19]}  a5 {[%clk 0:00:13]} 39. Kg5 {[%clk 0:00:19]}  a4 {[%clk 0:00:12]} 40. Rc3+ {[%clk 0:00:18]}  Kb6 {[%clk 0:00:13]} 41. Re3 {[%clk 0:00:18]}  Rf7 {[%clk 0:00:10]} 42. h5 {[%clk 0:00:17]}  b4 {[%clk 0:00:10]} 43. Kg6 {[%clk 0:00:17]}  Rc7 {[%clk 0:00:10]} 44. h6 {[%clk 0:00:09]}  gxh6 {[%clk 0:00:11]} 45. Kxh6 {[%clk 0:00:10]}  a3 {[%clk 0:00:11]} 46. Re2 {[%clk 0:00:05]}  Kb5 {[%clk 0:00:09]} 47. Re5+ {[%clk 0:00:05]}  Ka4 {[%clk 0:00:09]} 48. Re2 {[%clk 0:00:06]}  b3 {[%clk 0:00:09]} 49. Re4+ {[%clk 0:00:06]}  Ka5 {[%clk 0:00:09]} 50. Re5+ {[%clk 0:00:06]}  b5 {[%clk 0:00:10]} 51. Re3 {[%clk 0:00:05]}  Ka4 {[%clk 0:00:09]} 52. Re4+ {[%clk 0:00:05]}  b4 {[%clk 0:00:09]} 53. Re8 {[%clk 0:00:05]}  b2 {[%clk 0:00:10]} 54. Ra8+ {[%clk 0:00:06]}  Kb3 {[%clk 0:00:10]} 55. Rb8 {[%clk 0:00:06]}  b1=Q {[%clk 0:00:10]} 56. f6 {[%clk 0:00:07]}  Qh7+ {[%clk 0:00:09]} 57. Kg5 {[%clk 0:00:07]}  Rc5+ {[%clk 0:00:09]} 58. Kf4 {[%clk 0:00:07]}  Qf5+ {[%clk 0:00:09]} 59. Ke3 {[%clk 0:00:08]}  Qe5+ {[%clk 0:00:07]} 60. Kf3 {[%clk 0:00:08]}  Rc3+ {[%clk 0:00:08]} 61. Kg4 {[%clk 0:00:07]}  Rg3+ {[%clk 0:00:07]} 0-1


[Site "https://www.chess.com"]

[Event "Titled Tuesday Blitz May 4 2021"]
[White "Garakov, Mikhael"]
[Black "Langner, Ladislav"]
[WhiteFideId "4169034"]
[BlackFideId "300403"]
[WhiteElo "2367"]
[BlackElo "2346"]
[Result "1-0"]
[Round "02"]
[TimeControl "180+1"]
[Date "2021.05.04"]
[WhiteClock "0:00:31"]
[BlackClock "0:00:12"]

1. e4 {[%clk 0:03:00]}  c5 {[%clk 0:02:59]} 2. Nf3 {[%clk 0:03:00]}  e6 {[%clk 0:03:00]} 3. c4 {[%clk 0:02:59]}  Nc6 {[%clk 0:02:58]} 4. Nc3 {[%clk 0:02:59]}  Nd4 {[%clk 0:02:58]} 5. Be2 {[%clk 0:02:56]}  Ne7 {[%clk 0:02:56]} 6. O-O {[%clk 0:02:54]}  Nec6 {[%clk 0:02:55]} 7. d3 {[%clk 0:02:53]}  g6 {[%clk 0:02:55]} 8. Rb1 {[%clk 0:02:39]}  Bg7 {[%clk 0:02:49]} 9. a3 {[%clk 0:02:38]}  a5 {[%clk 0:02:48]} 10. Nxd4 {[%clk 0:01:58]}  Nxd4 {[%clk 0:02:44]} 11. b4 {[%clk 0:01:53]}  axb4 {[%clk 0:02:41]} 12. axb4 {[%clk 0:01:53]}  b6 {[%clk 0:02:33]} 13. bxc5 {[%clk 0:01:47]}  bxc5 {[%clk 0:02:32]} 14. Nb5 {[%clk 0:01:47]}  O-O {[%clk 0:02:19]} 15. Bb2 {[%clk 0:01:36]}  d6 {[%clk 0:02:05]} 16. Bxd4 {[%clk 0:01:35]}  Bxd4 {[%clk 0:02:01]} 17. Nxd4 {[%clk 0:01:33]}  cxd4 {[%clk 0:02:00]} 18. f4 {[%clk 0:01:16]}  Bd7 {[%clk 0:01:42]} 19. Bf3 {[%clk 0:01:12]}  Ra3 {[%clk 0:01:35]} 20. e5 {[%clk 0:01:10]}  dxe5 {[%clk 0:01:17]} 21. fxe5 {[%clk 0:01:11]}  Qg5 {[%clk 0:01:17]} 22. Re1 {[%clk 0:01:11]}  Rc8 {[%clk 0:00:58]} 23. Qc2 {[%clk 0:01:10]}  Ba4 {[%clk 0:00:45]} 24. Qe2 {[%clk 0:00:54]}  Bc6 {[%clk 0:00:36]} 25. Bxc6 {[%clk 0:00:44]}  Rxc6 {[%clk 0:00:36]} 26. Rb8+ {[%clk 0:00:42]}  Kg7 {[%clk 0:00:36]} 27. Qf3 {[%clk 0:00:41]}  Rc5 {[%clk 0:00:33]} 28. Rf1 {[%clk 0:00:34]}  Qf5 {[%clk 0:00:33]} 29. Qb7 {[%clk 0:00:33]}  Rxe5 {[%clk 0:00:14]} 30. Rxf5 {[%clk 0:00:32]}  Ra1+ {[%clk 0:00:12]} 31. Rf1 {[%clk 0:00:31]} 1-0


[Site "https://www.chess.com"]

[Event "Titled Tuesday Blitz May 4 2021"]
[White "Gershon, Alik"]
[Black "Prraneeth Vuppala"]
[WhiteFideId "2802430"]
[BlackFideId "46622373"]
[WhiteElo "2286"]
[BlackElo "1759"]
[Result "1/2-1/2"]
[Round "02"]
[TimeControl "180+1"]
[Date "2021.05.04"]
[WhiteClock "0:00:12"]
[BlackClock "0:00:07"]

1. e4 {[%clk 0:03:00]}  e5 {[%clk 0:02:58]} 2. Nf3 {[%clk 0:03:00]}  Nc6 {[%clk 0:02:58]} 3. Bc4 {[%clk 0:03:00]}  Nf6 {[%clk 0:02:58]} 4. d3 {[%clk 0:02:59]}  Bc5 {[%clk 0:02:57]} 5. Nc3 {[%clk 0:02:59]}  d6 {[%clk 0:02:41]} 6. Bg5 {[%clk 0:02:58]}  h6 {[%clk 0:02:41]} 7. Bxf6 {[%clk 0:02:58]}  Qxf6 {[%clk 0:02:38]} 8. Nd5 {[%clk 0:02:59]}  Qd8 {[%clk 0:02:38]} 9. c3 {[%clk 0:02:59]}  Be6 {[%clk 0:02:29]} 10. b4 {[%clk 0:02:44]}  Bb6 {[%clk 0:02:24]} 11. a4 {[%clk 0:02:43]}  a5 {[%clk 0:02:15]} 12. Nxb6 {[%clk 0:02:40]}  cxb6 {[%clk 0:02:15]} 13. Bxe6 {[%clk 0:02:39]}  fxe6 {[%clk 0:02:16]} 14. bxa5 {[%clk 0:02:39]}  Rxa5 {[%clk 0:02:13]} 15. Nd2 {[%clk 0:02:36]}  O-O {[%clk 0:02:09]} 16. O-O {[%clk 0:02:35]}  Qg5 {[%clk 0:01:54]} 17. Nc4 {[%clk 0:02:34]}  Rc5 {[%clk 0:01:48]} 18. Qc1 {[%clk 0:02:23]}  Qg6 {[%clk 0:01:41]} 19. Nxd6 {[%clk 0:02:19]}  Nd4 {[%clk 0:01:31]} 20. Qb2 {[%clk 0:01:51]}  Rxc3 {[%clk 0:01:27]} 21. Rac1 {[%clk 0:01:51]}  Rxd3 {[%clk 0:01:09]} 22. Nc4 {[%clk 0:01:41]}  Nf3+ {[%clk 0:01:02]} 23. Kh1 {[%clk 0:01:39]}  Qh5 {[%clk 0:01:02]} 24. gxf3 {[%clk 0:01:14]}  Qxf3+ {[%clk 0:00:59]} 25. Kg1 {[%clk 0:01:14]}  Qg4+ {[%clk 0:00:41]} 26. Kh1 {[%clk 0:01:14]}  Qf3+ {[%clk 0:00:41]} 27. Kg1 {[%clk 0:01:14]}  Qxe4 {[%clk 0:00:41]} 28. Qxe5 {[%clk 0:01:08]}  Qg4+ {[%clk 0:00:39]} 29. Kh1 {[%clk 0:01:05]}  Qf3+ {[%clk 0:00:39]} 30. Kg1 {[%clk 0:01:04]}  Qg4+ {[%clk 0:00:39]} 31. Kh1 {[%clk 0:01:03]}  Rf5 {[%clk 0:00:38]} 32. Qxe6+ {[%clk 0:00:58]}  Kh7 {[%clk 0:00:38]} 33. f4 {[%clk 0:00:54]}  Rf3 {[%clk 0:00:31]} 34. Qe4 {[%clk 0:00:49]}  Rxf1+ {[%clk 0:00:20]} 35. Rxf1 {[%clk 0:00:48]}  g6 {[%clk 0:00:20]} 36. Ne3 {[%clk 0:00:46]}  Qe2 {[%clk 0:00:19]} 37. Qe7+ {[%clk 0:00:42]}  Kh8 {[%clk 0:00:18]} 38. Qe8+ {[%clk 0:00:40]}  Kh7 {[%clk 0:00:19]} 39. Qe4 {[%clk 0:00:36]}  Rh5 {[%clk 0:00:17]} 40. Qe7+ {[%clk 0:00:29]}  Kh8 {[%clk 0:00:17]} 41. Qf8+ {[%clk 0:00:25]}  Kh7 {[%clk 0:00:17]} 42. Qf7+ {[%clk 0:00:25]}  Kh8 {[%clk 0:00:18]} 43. Qf6+ {[%clk 0:00:25]}  Kh7 {[%clk 0:00:17]} 44. Qe7+ {[%clk 0:00:24]}  Kh8 {[%clk 0:00:17]} 45. h4 {[%clk 0:00:25]}  Qd3 {[%clk 0:00:09]} 46. Qf6+ {[%clk 0:00:20]}  Kh7 {[%clk 0:00:09]} 47. Qe7+ {[%clk 0:00:18]}  Kh8 {[%clk 0:00:09]} 48. f5 {[%clk 0:00:19]}  Qd4 {[%clk 0:00:07]} 49. Qf8+ {[%clk 0:00:12]}  Kh7 {[%clk 0:00:07]} 50. Qf7+ {[%clk 0:00:12]}  Kh8 {[%clk 0:00:08]} 51. Qf8+ {[%clk 0:00:12]}  Kh7 {[%clk 0:00:08]} 52. Qe7+ {[%clk 0:00:12]}  Kg8 {[%clk 0:00:07]} 53. Qe8+ {[%clk 0:00:12]}  Kh7 {[%clk 0:00:07]} 54. Qe7+ {[%clk 0:00:12]}  Kh8 {[%clk 0:00:07]} 55. Qf8+ {[%clk 0:00:12]} 1/2-1/2


[Site "https://www.chess.com"]

[Event "Titled Tuesday Blitz May 4 2021"]
[White "Gombocz, Ferenc Jr."]
[Black "Valdes Romero, Leonardo"]
[WhiteFideId "775029"]
[BlackFideId "6500331"]
[WhiteElo "1913"]
[BlackElo "2497"]
[Result "0-1"]
[Round "02"]
[TimeControl "180+1"]
[Date "2021.05.04"]
[WhiteClock "0:00:01"]
[BlackClock "0:00:43"]

1. c4 {[%clk 0:03:00]}  Nf6 {[%clk 0:02:58]} 2. g3 {[%clk 0:03:00]}  e6 {[%clk 0:02:57]} 3. Bg2 {[%clk 0:03:00]}  d5 {[%clk 0:02:58]} 4. Nf3 {[%clk 0:03:00]}  Be7 {[%clk 0:02:58]} 5. O-O {[%clk 0:02:59]}  O-O {[%clk 0:02:56]} 6. Ne5 {[%clk 0:02:56]}  Nbd7 {[%clk 0:02:51]} 7. d4 {[%clk 0:02:48]}  c6 {[%clk 0:02:45]} 8. cxd5 {[%clk 0:02:25]}  exd5 {[%clk 0:02:43]} 9. Nd3 {[%clk 0:02:23]}  Bd6 {[%clk 0:02:41]} 10. Nc3 {[%clk 0:02:21]}  Re8 {[%clk 0:02:40]} 11. Re1 {[%clk 0:02:13]}  Nf8 {[%clk 0:02:36]} 12. e4 {[%clk 0:02:11]}  dxe4 {[%clk 0:02:35]} 13. Nxe4 {[%clk 0:02:11]}  Nxe4 {[%clk 0:02:35]} 14. Bxe4 {[%clk 0:02:10]}  Ng6 {[%clk 0:02:21]} 15. Bxg6 {[%clk 0:01:48]}  hxg6 {[%clk 0:02:09]} 16. Rxe8+ {[%clk 0:01:33]}  Qxe8 {[%clk 0:02:09]} 17. Bf4 {[%clk 0:01:28]}  Qd8 {[%clk 0:02:04]} 18. Bxd6 {[%clk 0:01:15]}  Qxd6 {[%clk 0:02:04]} 19. Nc5 {[%clk 0:01:15]}  b6 {[%clk 0:01:55]} 20. Ne4 {[%clk 0:01:14]}  Qd5 {[%clk 0:01:54]} 21. Nc3 {[%clk 0:01:11]}  Qd6 {[%clk 0:01:48]} 22. d5 {[%clk 0:01:08]}  Bb7 {[%clk 0:01:47]} 23. Qd3 {[%clk 0:00:51]}  Rd8 {[%clk 0:01:35]} 24. Rd1 {[%clk 0:00:46]}  cxd5 {[%clk 0:01:33]} 25. Qd4 {[%clk 0:00:39]}  Qc5 {[%clk 0:01:25]} 26. Qh4 {[%clk 0:00:27]}  Ra8 {[%clk 0:01:04]} 27. Qf4 {[%clk 0:00:14]}  Bc6 {[%clk 0:00:55]} 28. Qe5 {[%clk 0:00:12]}  Re8 {[%clk 0:00:54]} 29. Qg5 {[%clk 0:00:09]}  d4 {[%clk 0:00:51]} 30. Qxc5 {[%clk 0:00:09]}  bxc5 {[%clk 0:00:51]} 31. Nb1 {[%clk 0:00:09]}  Re2 {[%clk 0:00:49]} 32. Nd2 {[%clk 0:00:07]}  Ba4 {[%clk 0:00:46]} 33. b3 {[%clk 0:00:07]}  Bb5 {[%clk 0:00:46]} 34. a4 {[%clk 0:00:07]}  Ba6 {[%clk 0:00:46]} 35. Kg2 {[%clk 0:00:02]}  f6 {[%clk 0:00:43]} 36. Kf3 {[%clk 0:00:01]}  g5 {[%clk 0:00:43]} 0-1


[Site "https://www.chess.com"]

[Event "Titled Tuesday Blitz May 4 2021"]
[White "Grigoryan, Meri"]
[Black "Kiselev, Gennady"]
[WhiteFideId "13300571"]
[BlackFideId "4117107"]
[WhiteElo "2007"]
[BlackElo "2323"]
[Result "1-0"]
[Round "02"]
[TimeControl "180+1"]
[Date "2021.05.04"]
[WhiteClock "0:00:09"]
[BlackClock "0:00:01"]

1. d4 {[%clk 0:03:00]}  d5 {[%clk 0:02:58]} 2. Nf3 {[%clk 0:03:00]}  Nf6 {[%clk 0:02:57]} 3. Bg5 {[%clk 0:02:51]}  Ne4 {[%clk 0:02:52]} 4. Bf4 {[%clk 0:02:50]}  c5 {[%clk 0:02:51]} 5. e3 {[%clk 0:02:47]}  Nc6 {[%clk 0:02:49]} 6. c3 {[%clk 0:02:43]}  Bg4 {[%clk 0:02:42]} 7. Be2 {[%clk 0:02:42]}  e6 {[%clk 0:02:41]} 8. Ne5 {[%clk 0:02:39]}  Bxe2 {[%clk 0:02:38]} 9. Qxe2 {[%clk 0:02:39]}  Be7 {[%clk 0:02:35]} 10. Nd2 {[%clk 0:02:38]}  Nf6 {[%clk 0:02:31]} 11. O-O {[%clk 0:02:34]}  O-O {[%clk 0:02:30]} 12. Ndf3 {[%clk 0:02:11]}  Rc8 {[%clk 0:02:26]} 13. Rac1 {[%clk 0:02:09]}  Qb6 {[%clk 0:02:20]} 14. Nxc6 {[%clk 0:02:02]}  bxc6 {[%clk 0:02:18]} 15. Ne5 {[%clk 0:02:03]}  Rfd8 {[%clk 0:02:07]} 16. Kh1 {[%clk 0:02:01]}  Ne4 {[%clk 0:02:00]} 17. f3 {[%clk 0:01:58]}  Nd6 {[%clk 0:01:58]} 18. Rfd1 {[%clk 0:01:53]}  f6 {[%clk 0:01:40]} 19. Nd3 {[%clk 0:01:35]}  Nc4 {[%clk 0:01:22]} 20. b3 {[%clk 0:01:23]}  Na3 {[%clk 0:01:20]} 21. Nf2 {[%clk 0:01:02]}  a5 {[%clk 0:01:17]} 22. e4 {[%clk 0:00:57]}  cxd4 {[%clk 0:01:12]} 23. cxd4 {[%clk 0:00:52]}  Nb5 {[%clk 0:01:11]} 24. Be3 {[%clk 0:00:39]}  Ba3 {[%clk 0:01:02]} 25. Rc2 {[%clk 0:00:34]}  dxe4 {[%clk 0:00:43]} 26. d5 {[%clk 0:00:20]}  c5 {[%clk 0:00:26]} 27. fxe4 {[%clk 0:00:19]}  exd5 {[%clk 0:00:21]} 28. exd5 {[%clk 0:00:19]}  Nd6 {[%clk 0:00:20]} 29. Qf3 {[%clk 0:00:17]}  Re8 {[%clk 0:00:19]} 30. Bf4 {[%clk 0:00:17]}  Re7 {[%clk 0:00:17]} 31. Qg3 {[%clk 0:00:17]}  Nf5 {[%clk 0:00:14]} 32. Qg4 {[%clk 0:00:16]}  g6 {[%clk 0:00:10]} 33. d6 {[%clk 0:00:15]}  Rd7 {[%clk 0:00:05]} 34. Ne4 {[%clk 0:00:14]}  Rf8 {[%clk 0:00:03]} 35. Rf2 {[%clk 0:00:13]}  Qc6 {[%clk 0:00:03]} 36. Bg3 {[%clk 0:00:10]}  Kg7 {[%clk 0:00:01]} 37. Rxf5 {[%clk 0:00:09]} 1-0


[Site "https://www.chess.com"]